[Event "FRA-chT Top 12"]
[Site "Brest"]
[Date "2018.05.26"]
[Round "1"]
[White "Kosteniuk, Alexandra"]
[Black "Apicella, Manuel"]
[Result "0-1"]
[ECO "C19"]
[WhiteElo "2555"]
[BlackElo "2513"]
[PlyCount "85"]
[EventDate "2018.05.26"]
[EventType "team-tourn"]
[EventRounds "11"]
[EventCountry "FRA"]
[SourceTitle "EXT 2019"]
[Source "ChessBase"]
[SourceDate "2018.10.10"]
[SourceVersion "1"]
[SourceVersionDate "2018.10.10"]
[SourceQuality "1"]
[WhiteTeam "Clichy Echecs 92"]
[BlackTeam "Grasse Echecs"]
[WhiteTeamCountry "FRA"]
[BlackTeamCountry "FRA"]
[TimeControl "40/5400+30:1800+30"]

1. e4 {[%emt 0:00:00]} e6 {[%emt 0:00:12]} 2. d4 {[%emt 0:00:00]} d5 {[%emt 0:
00:09]} 3. Nc3 {[%emt 0:00:06]} Bb4 {[%emt 0:00:13]} 4. e5 {[%emt 0:00:18]} Ne7
{[%emt 0:00:17]} 5. a3 {[%emt 0:00:19]} Bxc3+ {[%emt 0:00:08]} 6. bxc3 {
[%emt 0:00:05]} c5 {[%emt 0:00:07]} 7. a4 {[%emt 0:00:45]} Nbc6 {[%emt 0:03:31]
} 8. Nf3 {[%emt 0:01:08]} Qa5 {[%emt 0:00:21]} 9. Qd2 {[%emt 0:00:27]} cxd4 {
[%emt 0:02:46]} 10. cxd4 {[%emt 0:00:45]} Qxd2+ {[%emt 0:00:17]} 11. Kxd2 {
[%emt 0:00:25]} Na5 {[%emt 0:06:43]} 12. Ba3 {[%emt 0:03:13]} Bd7 {[%emt 0:03:
05]} 13. Bb4 {[%emt 0:03:29]} Nc4+ {[%emt 0:09:42]} 14. Bxc4 {[%emt 0:03:08]}
dxc4 {[%emt 0:00:05]} 15. Bxe7 {[%emt 0:00:13]} Kxe7 {[%emt 0:00:06]} 16. Kc3 {
[%emt 0:00:36]} Rac8 {[%emt 0:04:18]} 17. Nd2 {[%emt 0:03:58]} Bc6 {[%emt 0:02:
42]} 18. f3 {[%emt 0:00:19]} f6 $146 {[%emt 0:07:19]} (18... f5 19. a5 g5 20.
Rhb1 h5 21. Rb4 g4 22. Rg1 gxf3 23. gxf3 Rhg8 24. Rxg8 Rxg8 25. Rxc4 Kd7 26. d5
Bxd5 27. Rh4 Kc6 28. Kd3 Kc5 29. c4 Bc6 30. Kc3 Be8 31. Nb3+ Kc6 32. Rd4 Kc7
33. Nc5 Bc6 34. Nxe6+ Kc8 35. f4 Bd7 36. Ng5 Rg6 37. e6 Bc6 38. e7 Bd7 39. Rd5
Rg7 40. Rc5+ Kb8 41. Re5 Be8 42. Kd4 Kc8 43. Rc5+ Kd7 44. Rc7+ {1-0 (44) Vovk,
Y (2562)-Williams,S (2513) London 2012}) 19. Rhe1 {[%emt 0:20:53]} Rhd8 {
[%emt 0:06:54]} 20. Rab1 {[%emt 0:07:39]} f5 {[%emt 0:08:53]} 21. Nf1 {[%emt 0:
07:31]} a5 {[%emt 0:07:45]} 22. Ne3 {[%emt 0:04:49]} Rc7 {[%emt 0:01:38]} 23.
f4 {[%emt 0:09:00]} Kf7 {[%emt 0:05:59]} 24. Rb6 {[%emt 0:02:30]} g6 {[%emt 0:
02:24]} 25. Reb1 {[%emt 0:09:28]} h6 {[%emt 0:05:00]} 26. d5 {[%emt 0:10:24]}
exd5 {[%emt 0:02:37]} 27. Kd4 {[%emt 0:00:02]} Ke6 {[%emt 0:03:37]} 28. R1b5 {
[%emt 0:02:31]} g5 {[%emt 0:00:51]} 29. g4 $2 {[%emt 0:00:12] Joué à tempo
alors que la poussée g3 était plus naturelle} (29. g3 $142 $36 {[%csl Gd4,
Re6]}) 29... gxf4 {[%emt 0:02:03]} 30. gxf5+ {[%emt 0:00:15]} Kf7 {[%emt 0:01:
48]} 31. Nxd5 {[%emt 0:05:43]} f3 {[%emt 0:01:50]} 32. e6+ {[%emt 0:01:08]} Kg8
{[%emt 0:00:43]} 33. Rc5 {[%emt 0:00:54]} f2 {[%emt 0:02:32]} 34. Rb1 {[%emt 0:
00:03]} Rg7 {[%emt 0:00:09]} 35. Rf1 {[%emt 0:00:29]} Rg1 {[%emt 0:00:32]} 36.
Rxf2 {[%emt 0:01:25]} Bxd5 {[%emt 0:00:23]} 37. Ke5 {[%emt 0:00:51]} Bc6 {
[%emt 0:04:58]} 38. Rxc4 $2 {[%emt 0:01:37] Un gaffe de zeitnot et non
seulement la partie bacule mais également le match car toutes les autres
parties se sont terminées par la nulle} (38. Re2) 38... Kg7 {[%emt 0:03:31]}
39. Re4 {[%emt 0:02:12]} Rd5+ {[%emt 0:01:26]} 40. Kf4 {[%emt 0:00:02]} Kf6 {
[%emt 0:30:06]} 41. e7 {[%emt 0:01:12]} Rxf5+ {[%emt 0:00:00]} 42. Ke3 {
[%emt 0:00:02]} Re1+ {[%emt 0:00:00]} 43. Kd4 0-1

[Event "FRA-chT Top 12"]
[Site "Brest"]
[Date "2018.05.27"]
[Round "2"]
[White "Kosteniuk, Alexandra"]
[Black "Dionisi, Thomas"]
[Result "1-0"]
[ECO "A88"]
[WhiteElo "2555"]
[BlackElo "2399"]
[PlyCount "71"]
[EventDate "2018.05.26"]
[EventType "team-tourn"]
[EventRounds "11"]
[EventCountry "FRA"]
[SourceTitle "EXT 2019"]
[Source "ChessBase"]
[SourceDate "2018.10.10"]
[SourceVersion "1"]
[SourceVersionDate "2018.10.10"]
[SourceQuality "1"]
[WhiteTeam "Clichy Echecs 92"]
[BlackTeam "Bois Colombes"]
[WhiteTeamCountry "FRA"]
[BlackTeamCountry "FRA"]
[TimeControl "40/5400+30:1800+30"]

1. d4 {[%emt 0:00:00]} f5 {[%emt 0:00:09]} 2. Nf3 {[%emt 0:00:00]} Nf6 {
[%emt 0:00:10]} 3. g3 {[%emt 0:00:03]} g6 {[%emt 0:00:07]} 4. Bg2 {[%emt 0:00:
06]} Bg7 {[%emt 0:00:05]} 5. O-O {[%emt 0:00:19]} O-O {[%emt 0:00:09]} 6. c4 {
[%emt 0:00:28]} d6 {[%emt 0:00:14]} 7. Nc3 {[%emt 0:00:34]} c6 {[%emt 0:00:06]}
8. b4 {[%emt 0:01:02]} Qe8 {[%emt 0:04:37]} (8... e5 9. dxe5 dxe5 10. e4 Qxd1
11. Rxd1 f4 12. Bb2 fxg3 13. hxg3 Bg4 14. Re1 Nbd7 15. Nd2 a5 16. a3 Rfd8 17.
Ncb1 b6 18. Nf3 Bxf3 19. Bxf3 Bf8 20. b5 cxb5 21. cxb5 Rac8 22. Nc3 Nc5 23.
Red1 Nd3 24. Na4 Nxb2 25. Rxd8 Rxd8 26. Nxb2 Rd4 27. Rd1 Rxd1+ 28. Bxd1 Nxe4
29. Bc2 Nc3 30. a4 Bc5 31. Nd1 Ne2+ 32. Kf1 Nd4 33. Bd3 Kg7 34. Nc3 h5 35. Ne4
Be7 36. Kg2 g5 37. Bb1 g4 38. Bd3 {Leko,P (2737)-Ponomariov,R (2723) Dortmund
2014 1/2-1/2}) 9. Qb3 {[%emt 0:01:18]} Kh8 {[%emt 0:09:53]} 10. b5 $146 {
[%emt 0:03:37]} (10. c5 a5 11. cxd6 axb4 12. Qxb4 Na6 13. Qa3 Nc7 14. Qc5 Ne6
15. Qb4 exd6 16. Qxd6 Ne4 17. Nxe4 fxe4 18. Ng5 Nxd4 19. Bd2 Bf5 20. Kh1 Rd8
21. Qf4 Nxe2 22. Qe3 Bg4 23. Nxe4 Bd4 24. Qg5 Bf5 25. Bb4 Bxe4 26. Bxf8 Bxg2+
27. Kxg2 Qxf8 28. Rad1 c5 29. Rd3 Re8 30. Qd5 Qe7 31. Rf3 Nc3 32. Qb3 Qe4 33.
Rc1 Ne2 34. Rb1 b5 35. Qxb5 Nc3 36. Qb7 Nxb1 37. Qxe4 Rxe4 {0-1 (37) Tulay
Berkay,K (2128)-Haznedaroglu,K (2455) Kemer 2012}) 10... e5 {[%emt 0:06:46]}
11. dxe5 {[%emt 0:00:20]} dxe5 {[%emt 0:00:15]} 12. e4 {[%emt 0:01:28]} f4 {
[%emt 0:06:44]} 13. Ba3 {[%emt 0:03:45]} Rg8 {[%emt 0:11:38]} 14. Bd6 {[%emt 0:
01:22]} Nh5 {[%emt 0:01:17]} 15. bxc6 {[%emt 0:13:10]} Nxc6 {[%emt 0:07:27]}
16. Nd5 {[%emt 0:00:12]} Bg4 {[%emt 0:09:59]} 17. Qxb7 {[%emt 0:01:38]} Bxf3 $6
{[%emt 0:00:16]} 18. Bxf3 {[%emt 0:00:07]} Nd4 {[%emt 0:00:13]} 19. Bg4 $1 {
[%emt 0:02:01]} Nf6 {[%emt 0:03:19]} 20. Nxf6 {[%emt 0:08:47]} Bxf6 {[%emt 0:
00:03]} 21. c5 $36 {[%emt 0:06:27][%csl Gc5]} Rg7 {[%emt 0:01:20]} (21... h5
22. Bd1 $16) 22. Qd5 {[%emt 0:00:14]} h5 {[%emt 0:00:23]} 23. Bd1 {[%emt 0:03:
09]} f3 {[%emt 0:00:45]} 24. Re1 {[%emt 0:03:21]} g5 {[%emt 0:01:35]} 25. Re3 {
[%emt 0:01:05]} g4 {[%emt 0:00:16]} 26. Ba4 {[%emt 0:02:52]} Qxa4 {[%emt 0:05:
08]} 27. Qxa8+ {[%emt 0:00:05]} Kh7 {[%emt 0:00:05]} 28. Qf8 {[%emt 0:08:19]}
Kg6 {[%emt 0:04:24]} 29. Qc8 {[%emt 0:01:14]} Qb5 {[%emt 0:07:34]} 30. h3 {
[%emt 0:02:11]} gxh3 {[%emt 0:06:41]} 31. Kh1 {[%emt 0:02:53]} Kh7 {[%emt 0:09:
38]} 32. Rxf3 {[%emt 0:04:39]} Nxf3 {[%emt 0:02:58]} 33. Qf5+ {[%emt 0:00:05]}
Rg6 {[%emt 0:00:11]} 34. Qxh5+ {[%emt 0:00:27]} Kg7 {[%emt 0:00:13]} 35. Qxf3 {
[%emt 0:00:21]} Qb2 {[%emt 0:00:13]} 36. Rd1 {[%emt 0:00:19]} 1-0

[Event "FRA-chT Top 12"]
[Site "Brest"]
[Date "2018.05.28"]
[Round "3"]
[White "Istratescu, Andrei"]
[Black "Kosteniuk, Alexandra"]
[Result "1-0"]
[ECO "C92"]
[WhiteElo "2589"]
[BlackElo "2555"]
[PlyCount "91"]
[EventDate "2018.05.26"]
[EventType "team-tourn"]
[EventRounds "11"]
[EventCountry "FRA"]
[SourceTitle "EXT 2019"]
[Source "ChessBase"]
[SourceDate "2018.10.10"]
[SourceVersion "1"]
[SourceVersionDate "2018.10.10"]
[SourceQuality "1"]
[WhiteTeam "Mulhouse Philidor"]
[BlackTeam "Clichy Echecs 92"]
[WhiteTeamCountry "FRA"]
[BlackTeamCountry "FRA"]
[TimeControl "40/5400+30:1800+30"]

1. e4 {[%emt 0:00:00]} e5 {[%emt 0:01:14]} 2. Nf3 {[%emt 0:00:39]} Nc6 {
[%emt 0:00:07]} 3. Bb5 {[%emt 0:00:16]} a6 {[%emt 0:00:04]} 4. Ba4 {[%emt 0:00:
09]} Nf6 {[%emt 0:00:05]} 5. O-O {[%emt 0:00:08]} Be7 {[%emt 0:00:23]} 6. Re1 {
[%emt 0:00:18]} b5 {[%emt 0:00:18]} 7. Bb3 {[%emt 0:00:09]} d6 {[%emt 0:00:22]}
8. c3 {[%emt 0:00:59]} O-O {[%emt 0:00:20]} 9. h3 {[%emt 0:00:35]} Re8 {
[%emt 0:00:13]} 10. d4 {[%emt 0:06:37]} Bb7 {[%emt 0:00:58]} 11. Nbd2 {[%emt 0:
05:15]} exd4 {[%emt 0:00:22]} 12. cxd4 {[%emt 0:03:05]} Nd7 {[%emt 0:00:06]}
13. Nf1 {[%emt 0:08:37]} Na5 {[%emt 0:01:09]} 14. Bc2 {[%emt 0:03:05]} Bf6 {
[%emt 0:00:21]} 15. Ng3 {[%emt 0:04:56]} (15. Ne3 Bxe4 16. Bd2 Bxc2 17. Qxc2
Nc4 18. Nxc4 Rxe1+ 19. Rxe1 bxc4 20. Qxc4 Nb6 21. Qc6 Qd7 22. Rc1 Qxc6 23. Rxc6
Nd5 24. Ba5 Ra7 25. Kf1 Kf8 26. g3 Ke7 27. Ke2 Kd7 28. Rc4 Rb7 29. b3 Rb5 30.
Bd2 Nb6 31. Rc2 a5 32. Kd3 a4 33. b4 h5 34. a3 g6 35. g4 Be7 36. Rc1 Rd5 37.
Be3 c6 38. Nd2 Rb5 39. Ne4 hxg4 40. hxg4 Nd5 41. Bd2 Rb8 42. Rh1 Nf6 43. f3
Nxe4 44. fxe4 d5 {Shankland,S (2671)-Bu,X (2725) Liaocheng 2018 1/2-1/2}) 15...
g6 {[%emt 0:03:22]} 16. Bd2 {[%emt 0:30:22]} Nc4 {[%emt 0:09:27]} 17. Bc3 {
[%emt 0:02:16]} c5 {[%emt 0:00:27]} 18. Bb3 $146 {[%emt 0:02:02]} (18. b3 Na3
19. Bd3 b4 20. Bb2 Nb5 21. Qd2 Nc3 22. Bxc3 bxc3 23. Qxc3 cxd4 24. Qd2 Nc5 25.
Rad1 Rc8 26. Bb1 Ne6 27. Ne2 Nc5 28. Ng3 Ne6 29. Ne2 Qb6 30. Nfxd4 Nxd4 31.
Nxd4 d5 32. e5 Bxe5 33. Nf3 Bg7 34. Rxe8+ Rxe8 35. Bd3 d4 36. Qf4 Qf6 {1/2-1/2
(36) Kalinina,O (2337)-Szczepkowska,K (2411) Mamaia 2016}) 18... cxd4 {[%emt 0:
04:40]} 19. Bxd4 {[%emt 0:02:06]} Rc8 {[%emt 0:22:21]} 20. Bxc4 {[%emt 0:04:16]
} Rxc4 {[%emt 0:00:36]} 21. b3 {[%emt 0:00:21]} Bxd4 {[%emt 0:05:23]} 22. Nxd4
{[%emt 0:02:27]} Rc5 {[%emt 0:00:09]} 23. b4 {[%emt 0:02:37]} Rc7 {[%emt 0:05:
46]} 24. a4 {[%emt 0:04:00]} bxa4 {[%emt 0:02:30]} 25. Qxa4 {[%emt 0:00:27]}
Nf6 {[%emt 0:01:23]} 26. Rad1 {[%emt 0:03:38]} Qc8 {[%emt 0:12:49]} (26... Nxe4
27. Nxe4 Rxe4 28. Rxe4 Bxe4 29. Qxa6 Qg5 $132 {[%cal Gg5g2]}) 27. b5 {[%emt 0:
02:15]} Rc4 $2 {[%emt 0:02:37]} (27... axb5 28. Nxb5) (27... d5 28. bxa6 Bxa6)
28. Qa1 {[%emt 0:01:07]} d5 {[%emt 0:24:48]} 29. bxa6 {[%emt 0:01:46]} Bxa6 {
[%emt 0:00:01]} 30. Ndf5 {[%emt 0:01:43]} gxf5 {[%emt 0:00:02]} 31. Qxf6 {
[%emt 0:00:05]} Rc6 {[%emt 0:01:15]} 32. Qa1 {[%emt 0:01:52]} fxe4 {[%emt 0:02:
11]} 33. Rxd5 {[%emt 0:01:03]} Rg6 {[%emt 0:00:12]} 34. Nh5 {[%emt 0:03:53]}
Bb7 {[%emt 0:00:13]} 35. Rd6 {[%emt 0:00:35]} Ree6 {[%emt 0:00:38]} 36. Red1 {
[%emt 0:01:02]} Rxd6 37. Rxd6 {[%emt 0:00:03]} Qc7 {[%emt 0:01:24]} 38. Nf6+ {
[%emt 0:01:26]} Kf8 {[%emt 0:00:01]} 39. Nxh7+ {[%emt 0:00:22]} Kg8 {[%emt 0:
00:46]} 40. Nf6+ {[%emt 0:00:31]} Kf8 {[%emt 0:30:01]} 41. Qa3 {[%emt 0:07:58]}
e3 {[%emt 0:00:00]} 42. Rd7+ {[%emt 0:03:50]} Kg7 {[%emt 0:00:00]} 43. Nh5+ {
[%emt 0:01:24]} Kg8 {[%emt 0:00:00]} 44. Rxc7 {[%emt 0:00:10]} e2 {[%emt 0:00:
00]} 45. Rxb7 {[%emt 0:02:45]} e1=Q+ {[%emt 0:00:00]} 46. Kh2 {[%emt 0:00:04]}
1-0

[Event "FRA-chT Top 12"]
[Site "Brest"]
[Date "2018.05.29"]
[Round "4"]
[White "Kosteniuk, Alexandra"]
[Black "Efimov, Igor"]
[Result "1-0"]
[ECO "B30"]
[WhiteElo "2555"]
[BlackElo "2413"]
[PlyCount "59"]
[EventDate "2018.05.26"]
[EventType "team-tourn"]
[EventRounds "11"]
[EventCountry "FRA"]
[SourceTitle "EXT 2019"]
[Source "ChessBase"]
[SourceDate "2018.10.10"]
[SourceVersion "1"]
[SourceVersionDate "2018.10.10"]
[SourceQuality "1"]
[WhiteTeam "Clichy Echecs 92"]
[BlackTeam "Cemc Monaco"]
[WhiteTeamCountry "FRA"]
[BlackTeamCountry "MNC"]
[TimeControl "40/5400+30:1800+30"]

1. e4 {[%emt 0:00:00]} c5 {[%emt 0:02:07]} 2. Nf3 {[%emt 0:00:00]} Nc6 {
[%emt 0:01:00]} 3. Bb5 {[%emt 0:00:01]} Nf6 {[%emt 0:00:45]} 4. Bxc6 {[%emt 0:
00:23]} (4. Nc3 g6 5. O-O Bg7 6. e5 Ng4 7. Bxc6 dxc6 8. Re1 O-O 9. d3 Nh6 10.
h3 Nf5 11. Ne4 b6 12. Bf4 Nd4 13. c3 Nxf3+ 14. Qxf3 Be6 15. Qe3 Qd5 16. c4 Qd7
17. Bh6 Rfd8 18. Bxg7 Kxg7 19. Rad1 Qd4 20. Qg5 Rd7 21. Nc3 h6 22. Qg3 Bf5 23.
Rd2 g5 24. Qf3 Qf4 25. Qxf4 gxf4 26. Ne2 Rxd3 27. Rxd3 Bxd3 28. Nxf4 Bxc4 29.
b3 Bd5 30. Rd1 e6 31. Nh5+ Kg6 32. g4 a5 33. Nf6 a4 {Vidit,S (2707)-Li,C (2732)
Liaocheng 2018 0-1}) 4... bxc6 {[%emt 0:01:44]} 5. e5 {[%emt 0:00:20]} Nd5 {
[%emt 0:00:11]} 6. O-O {[%emt 0:03:27]} g6 {[%emt 0:00:59]} 7. c4 {[%emt 0:00:
14]} Nc7 {[%emt 0:00:35]} 8. d4 {[%emt 0:00:14]} Ba6 $6 $146 {[%emt 0:02:35]} (
8... cxd4 9. Qxd4 Bg7 10. Nc3 O-O 11. Qh4 f6 12. exf6 exf6 13. Rd1 d5 14. cxd5
Nxd5 15. Bh6 Bxh6 16. Qxh6 Bg4 17. Rd3 Bxf3 18. Rxf3 Nxc3 19. Rxc3 Qd5 20. Qc1
Rac8 21. Qe3 Rfe8 22. Qxa7 Ra8 23. Qb7 Rxa2 24. Rf1 Qb5 25. Qxb5 cxb5 26. Rb3
Re5 27. g3 g5 28. Rd1 Kf7 29. Kg2 Kg6 30. Rd6 g4 31. h3 h5 32. hxg4 hxg4 33.
Rb6 Ra5 34. Rb4 Kg5 35. Rf4 Rf5 36. Rxf5+ Kxf5 37. b4 Ra4 38. Rxb5+ {Fedoseev,
V (2659)-Handke,F (2531) Berlin 2015 1/2-1/2}) 9. b3 {[%emt 0:10:13]} cxd4 {
[%emt 0:01:35]} 10. Qxd4 $16 {[%emt 0:00:05][%csl Ra6][%cal Ge5e6,Gd4h8]} Bg7 {
[%emt 0:00:28]} 11. Qh4 {[%emt 0:01:50][%cal Gc1h6]} h6 {[%emt 0:36:00]} (11...
O-O $6 12. Bh6 $36) 12. Nc3 {[%emt 0:08:50]} Ne6 {[%emt 0:04:58]} 13. Rd1 {
[%emt 0:03:24]} Qc7 {[%emt 0:02:44]} 14. Ba3 {[%emt 0:01:48]} (14. Bb2 Bxe5 15.
Nd5 $5 {[%cal Gb2e5]}) 14... Ng5 {[%emt 0:02:35]} 15. Re1 $5 {[%emt 0:11:13]}
Nxf3+ {[%emt 0:03:11]} 16. gxf3 {[%emt 0:00:04]} g5 {[%emt 0:00:09]} 17. Qd4 {
[%emt 0:06:37]} Bb7 {[%emt 0:17:20]} 18. Rad1 {[%emt 0:06:38]} Rc8 {[%emt 0:04:
51]} 19. Ne4 {[%emt 0:04:40]} c5 {[%emt 0:01:26]} 20. Bxc5 {[%emt 0:04:40]} Qc6
{[%emt 0:03:48]} 21. Ba3 {[%emt 0:02:56]} d6 $2 {[%emt 0:02:16]} 22. Nxd6+ {
[%emt 0:03:14]} exd6 {[%emt 0:00:17]} 23. exd6+ {[%emt 0:00:04]} Kf8 {[%emt 0:
02:07]} 24. d7+ {[%emt 0:00:21]} Kg8 {[%emt 0:00:02]} 25. dxc8=Q+ {[%emt 0:00:
45]} Bxc8 {[%emt 0:00:02]} 26. Qe4 {[%emt 0:01:20]} Qc7 {[%emt 0:00:25]} 27.
Bd6 {[%emt 0:00:49]} Qa5 {[%emt 0:00:11]} 28. Qe8+ {[%emt 0:01:54]} Kh7 {
[%emt 0:00:02]} 29. Qxf7 {[%emt 0:00:08]} Rg8 {[%emt 0:01:01]} 30. Re7 {
[%emt 0:01:22]} 1-0

[Event "FRA-chT Top 12"]
[Site "Brest"]
[Date "2018.05.30"]
[Round "5"]
[White "Koch, Jean Rene"]
[Black "Kosteniuk, Alexandra"]
[Result "1/2-1/2"]
[ECO "A28"]
[WhiteElo "2454"]
[BlackElo "2555"]
[PlyCount "121"]
[EventDate "2018.05.26"]
[EventType "team-tourn"]
[EventRounds "11"]
[EventCountry "FRA"]
[SourceTitle "EXT 2019"]
[Source "ChessBase"]
[SourceDate "2018.10.10"]
[SourceVersion "1"]
[SourceVersionDate "2018.10.10"]
[SourceQuality "1"]
[WhiteTeam "Metz Fischer"]
[BlackTeam "Clichy Echecs 92"]
[WhiteTeamCountry "FRA"]
[BlackTeamCountry "FRA"]
[TimeControl "40/5400+30:1800+30"]

1. c4 {[%emt 0:00:00]} e5 {[%emt 0:00:05]} 2. Nc3 {[%emt 0:00:05]} Nf6 {
[%emt 0:00:06]} 3. Nf3 {[%emt 0:00:31]} Nc6 {[%emt 0:00:19]} 4. e3 {[%emt 0:00:
09]} Bb4 {[%emt 0:00:20]} 5. Qc2 {[%emt 0:01:38]} Bxc3 {[%emt 0:00:34]} 6. Qxc3
{[%emt 0:00:39]} Qe7 {[%emt 0:01:14]} 7. a3 {[%emt 0:01:00]} d5 {[%emt 0:05:26]
} 8. d4 {[%emt 0:01:13]} exd4 {[%emt 0:03:38]} 9. Nxd4 {[%emt 0:00:07]} Nxd4 {
[%emt 0:02:10]} 10. Qxd4 {[%emt 0:00:07]} O-O {[%emt 0:01:36]} (10... c5 11.
Qh4 dxc4 12. Bxc4 Be6 13. Bb5+ Nd7 14. Qxe7+ Kxe7 15. Bd2 Rac8 16. Rc1 Rhd8 17.
Ba5 b6 18. Bc3 f6 19. O-O Bb3 {1/2-1/2 (19) Vitiugov,N (2720)-Tomashevsky,E 
(2707) Olginka 2011}) 11. c5 {[%emt 0:24:57]} a5 {[%emt 0:03:28]} 12. b3 {
[%emt 0:20:36]} b6 {[%emt 0:13:06]} 13. c6 {[%emt 0:02:10]} Ba6 $146 {[%emt 0:
17:54]} (13... Qe6 14. Bb5 Ba6 15. a4 Bxb5 16. axb5 Qf5 17. Bb2 Rfd8 18. Rc1
Qe4 19. O-O Qxd4 20. Bxd4 Ne4 21. Be5 Ra7 22. Rfd1 f6 23. Ba1 Kf7 24. f3 Nc5
25. Rb1 a4 26. bxa4 Rxa4 {1/2-1/2 (26) Wojna,G (2263)-Kubicki,T (2312) ICCF
email 2003}) 14. Bxa6 {[%emt 0:06:39]} Rxa6 {[%emt 0:00:02]} 15. Bb2 {[%emt 0:
02:18]} Rd8 {[%emt 0:10:20]} 16. Rc1 {[%emt 0:01:36]} Qe6 {[%emt 0:08:01]} 17.
O-O {[%emt 0:08:39]} Rd6 {[%emt 0:00:57]} 18. Rfd1 {[%emt 0:04:47]} Ra8 {
[%emt 0:04:04]} 19. Qc3 {[%emt 0:03:25]} Qg4 {[%emt 0:04:53]} 20. h3 Qg6 {
[%emt 0:00:46]} 21. Qc2 {[%emt 0:09:59]} Re8 {[%emt 0:01:23]} 22. Qxg6 {
[%emt 0:00:53]} hxg6 {[%emt 0:00:00]} 23. Bd4 {[%emt 0:00:23]} Ne4 {[%emt 0:01:
35]} 24. f3 {[%emt 0:03:45]} Ng3 {[%emt 0:00:45]} 25. Kf2 {[%emt 0:01:46]} Nf5
{[%emt 0:00:05]} 26. g4 {[%emt 0:00:46]} Nxd4 {[%emt 0:01:25]} 27. Rxd4 {
[%emt 0:00:05]} Ree6 {[%emt 0:00:24]} 28. b4 {[%emt 0:00:48]} axb4 {[%emt 0:01:
07]} 29. axb4 {[%emt 0:00:05]} Rxc6 {[%emt 0:00:03]} 30. Rxc6 {[%emt 0:00:08]}
Rxc6 {[%emt 0:00:04]} 31. Rxd5 {[%emt 0:00:06]} Rc2+ {[%emt 0:00:35]} 32. Kg3
Kf8 33. e4 {[%emt 0:02:50]} Ke7 {[%emt 0:04:41]} 34. b5 {[%emt 0:01:24]} c6 $1
$11 {[%emt 0:14:17]} 35. bxc6 {[%emt 0:00:05]} Rxc6 {[%emt 0:00:01]} 36. Kf4 {
[%emt 0:01:19]} Rc8 {[%emt 0:00:56]} 37. h4 {[%emt 0:00:44]} Rb8 {[%emt 0:00:
07]} 38. Rb5 {[%emt 0:01:23]} Kd6 {[%emt 0:00:02]} 39. Ke3 {[%emt 0:00:59]} Kc6
{[%emt 0:01:41]} 40. Re5 {[%emt 0:00:49]} b5 {[%emt 0:31:09]} 41. Kd2 {[%emt 0:
06:59]} Rd8+ {[%emt 0:00:00]} 42. Kc3 {[%emt 0:04:30]} Rd6 {[%emt 0:00:00]} 43.
f4 {[%emt 0:05:24]} Rd7 {[%emt 0:00:00]} 44. Re8 {[%emt 0:00:53]} Ra7 {[%emt 0:
00:00]} 45. Rg8 {[%emt 0:05:10]} f5 {[%emt 0:00:00]} 46. exf5 {[%emt 0:02:17]}
gxf5 {[%emt 0:00:00]} 47. g5 {[%emt 0:00:49]} Kd5 {[%emt 0:00:00]} 48. Re8 {
[%emt 0:01:47]} Ra3+ {[%emt 0:00:00]} 49. Kb2 {[%emt 0:01:30]} Rh3 {[%emt 0:00:
00]} 50. Re5+ {[%emt 0:00:57]} Kc4 {[%emt 0:00:00]} 51. Rxf5 {[%emt 0:00:24]}
Rxh4 {[%emt 0:00:00]} 52. Rf7 {[%emt 0:00:46]} Rh2+ {[%emt 0:00:00]} 53. Kc1 {
[%emt 0:00:20]} g6 {[%emt 0:00:00]} 54. f5 {[%emt 0:01:13]} gxf5 {[%emt 0:00:
00]} 55. Rxf5 {[%emt 0:00:07]} Rg2 {[%emt 0:00:00]} 56. Kb1 {[%emt 0:00:36]} b4
{[%emt 0:00:00]} 57. Rf4+ {[%emt 0:00:23]} Kb3 {[%emt 0:00:00]} 58. Rf3+ {
[%emt 0:00:05]} Ka4 {[%emt 0:00:00]} 59. Rh3 {[%emt 0:00:17]} b3 {[%emt 0:00:
00]} 60. Rh8 {[%emt 0:00:15]} Rxg5 {[%emt 0:00:00]} 61. Ra8+ {[%emt 0:00:06]}
1/2-1/2

[Event "FRA-chT Top 12"]
[Site "Brest"]
[Date "2018.06.02"]
[Round "8"]
[White "Abergel, Thal"]
[Black "Kosteniuk, Alexandra"]
[Result "0-1"]
[ECO "B18"]
[WhiteElo "2429"]
[BlackElo "2555"]
[PlyCount "62"]
[EventDate "2018.05.26"]
[EventType "team-tourn"]
[EventRounds "11"]
[EventCountry "FRA"]
[SourceTitle "EXT 2019"]
[Source "ChessBase"]
[SourceDate "2018.10.10"]
[SourceVersion "1"]
[SourceVersionDate "2018.10.10"]
[SourceQuality "1"]
[WhiteTeam "Tremblay en France"]
[BlackTeam "Clichy Echecs 92"]
[WhiteTeamCountry "FRA"]
[BlackTeamCountry "FRA"]
[TimeControl "40/5400+30:1800+30"]

1. e4 {[%emt 0:03:01]} c6 {[%emt 0:00:06]} 2. d4 {[%emt 0:00:21]} d5 {[%emt 0:
00:05]} 3. Nc3 {[%emt 0:00:03]} dxe4 {[%emt 0:00:05]} 4. Nxe4 {[%emt 0:00:04]}
Bf5 {[%emt 0:00:06]} 5. Ng3 {[%emt 0:00:30]} Bg6 {[%emt 0:00:10]} 6. Nh3 {
[%emt 0:01:13]} Nd7 {[%emt 0:00:15]} 7. Nf4 {[%emt 0:02:22]} (7. Bc4 e6 8. Nf4
Bd6 9. Nxg6 hxg6 10. Ne4 Ndf6 11. Ng5 Nd5 12. h4 Ngf6 13. Bd2 Qc7 14. Qe2 Bf4
15. O-O-O Bxd2+ 16. Rxd2 O-O-O 17. g3 Rd7 18. Rhd1 Rhd8 19. Bb3 Qa5 20. Nf3 Re7
21. Kb1 Nb6 22. Rd3 Qh5 23. Qe1 Qb5 24. a4 Qf5 25. Ng5 Nbd5 26. c4 Nc7 27. Bc2
Qg4 28. Qb4 Red7 29. Nf3 Na6 30. Qe1 Qh5 31. Ne5 Re7 32. b4 Nd7 33. Nf3 Rde8
34. b5 Nc7 35. bxc6 bxc6 36. Ne5 Nxe5 {Piorun,K (2633)-Bartel,M (2604) Warsaw
2018 1-0}) 7... Qc7 {[%emt 0:00:19]} 8. Be3 {[%emt 0:15:06]} O-O-O $146 {
[%emt 0:07:31]} (8... e6 9. c3 Bd6 10. Ngh5 O-O-O 11. Qf3 e5 12. dxe5 Nxe5 13.
Qh3+ Kb8 14. Be2 Ne7 15. g4 Be4 16. f3 Bd5 17. Qg2 g6 18. Nf6 Nxf3+ 19. Bxf3
Bxf4 20. Bxf4 Qxf4 21. O-O Bc4 22. Be2 Qe3+ 23. Rf2 Bxe2 {0-1 (23) Movileanu,D
(2192)-Goryachkina,A (2478) Reykjavik 2015}) 9. Nxg6 {[%emt 0:07:40]} hxg6 {
[%emt 0:00:07]} 10. Qf3 {[%emt 0:00:29]} Qa5+ {[%emt 0:07:33]} 11. c3 {[%emt 0:
01:13]} f5 {[%emt 0:10:38]} 12. b4 {[%emt 0:14:33]} Qc7 {[%emt 0:04:32]} 13.
O-O-O {[%emt 0:04:39]} Ngf6 {[%emt 0:01:38]} 14. Bf4 {[%emt 0:01:11]} e5 {
[%emt 0:02:31]} 15. dxe5 {[%emt 0:00:06]} Nd5 {[%emt 0:00:16]} 16. Bc4 {
[%emt 0:04:54]} Nxf4 {[%emt 0:07:51]} 17. Qxf4 {[%emt 0:00:44]} Qxe5 {[%emt 0:
10:48]} 18. Qd2 $2 {[%emt 0:02:26]} (18. Qxe5) 18... Bxb4 $1 {[%emt 0:08:57]}
19. cxb4 {[%emt 0:11:30]} Nb6 {[%emt 0:00:06]} 20. Bd3 {[%emt 0:02:08]} Qa1+ {
[%emt 0:05:04]} 21. Kc2 {[%emt 0:02:40]} Qxa2+ {[%emt 0:00:05]} 22. Kc1 {
[%emt 0:00:03]} Qa1+ {[%emt 0:00:12]} 23. Kc2 {[%emt 0:00:06]} Qa2+ {[%emt 0:
01:17]} 24. Kc1 {[%emt 0:00:03]} Qa3+ {[%emt 0:00:24]} 25. Kc2 {[%emt 0:02:06]}
Na4 {[%emt 0:04:06]} 26. Rb1 {[%emt 0:01:52]} Rxd3 {[%emt 0:05:29]} 27. Qxd3 {
[%emt 0:00:38]} Qa2+ {[%emt 0:00:04]} 28. Kc1 {[%emt 0:00:36]} Rd8 {[%emt 0:00:
02]} 29. Qc2 {[%emt 0:03:45]} Qa3+ {[%emt 0:00:06]} 30. Rb2 {[%emt 0:00:04]}
Rd3 {[%emt 0:13:30]} 31. Ne2 {[%emt 0:00:59]} Nxb2 {[%emt 0:00:13]} 0-1